Cogmind - Beta 13 @@@ ROGUE MODE // 2024.04.06 @ 15:39:55 Player: Varatnar Result: Destroyed by G-34 Mercenary with Small Laser Performance ------------- Evolutions (1) 500 Regions Visited (2) 400 Robots Destroyed (15) 75 Value Destroyed (267) 267 Prototype IDs (2) 40 Alien Tech Used (0) 0 Bonus (0) 0 TOTAL SCORE: 1282 Bonus ------- None Cogmind --------- Core Integrity 0/400 Matter 217/300 Energy 94/100 System Corruption 4% Temperature Cool (6) Movement Core (100) Ox1 Location -9/Materials Parts ------- > --- POWER (1) -------- (None) > --- PROPULSION (4) --- (None) > --- UTILITY (2) ------ Small Storage Unit > --- WEAPON (2) ------- (None) > --- INVENTORY (8) ---- Sensor Array Peak State ------------ > --- POWER ------------ Light Ion Engine > --- PROPULSION ------- Flight Unit Flight Unit Flight Unit Flight Unit > --- UTILITY ---------- Medium Matter Pod Core Shielding > --- WEAPON ----------- Light Assault Rifle Light Assault Rifle > --- INVENTORY -------- Small Storage Unit Light Assault Rifle Grenade Launcher [Rating: 9] Favorites ----------- Power Light Ion Engine Engine Light Ion Engine Propulsion Flight Unit Leg Aluminum Leg Hover Unit Hover Unit Flight Unit Flight Unit Utility Medium Matter Pod Storage Medium Matter Pod Protection Core Shielding Weapon Light Assault Rifle Energy Gun Medium Laser Ballistic Gun Light Assault Rifle Launcher Grenade Launcher Build | -11 -10 -9 ------- Run | Yrd Mat Mat Slots Evolved 2 | . . 2 Power . | . . . Propulsion 2 | . . 2 Utility . | . . . Weapon . | . . . Parts Attached 30 | 5 16 9 Power 4 | 1 3 . Engine 4 | 1 3 . Core . | . . . Reactor . | . . . Propulsion 12 | 2 7 3 Treads . | . . . Leg 2 | 2 . . Wheel . | . . . Hover 1 | . 1 . Flight 9 | . 6 3 Utility 4 | . 2 2 Device . | . . . Storage 2 | . 1 1 Processor . | . . . Hackware . | . . . Protection 2 | . 1 1 Artifact . | . . . Weapon 10 | 2 4 4 Energy Gun 2 | 2 . . Energy Cannon . | . . . Ballistic Gun 7 | . 4 3 Ballistic Cannon . | . . . Launcher 1 | . . 1 Special Weapon . | . . . Impact Weapon . | . . . Slashing Weapon . | . . . Piercing Weapon . | . . . Special Melee Weapon . | . . . Unidentified Prototypes . | . . . Parts Lost 14 | . 2 12 Power 2 | . 1 1 Propulsion 5 | . . 5 Utility 2 | . . 2 Weapon 5 | . 1 4 Highest Loss Streak 6 | . 1 6 To Critical Strikes . | . . . Average Slot Usage (%) 77 | . 84 67 Engine 9 | . 12 6 Leg 4 | . 8 . Flight 20 | . 18 22 Storage 13 | . 8 20 Protection 5 | . 8 1 Energy Gun 4 | . 7 . Ballistic Gun 17 | . 19 14 Naked Turns . | . . . Heaviest Build 14 | 7 8 14 Greatest Support 20 | 20 20 16 Greatest Overweight (x) 2 | . 1 2 Average Overweight (x) . | . . . Largest Inventory Capacity 8 | 5 5 8 Average Capacity 5 | 5 5 7 Most Carried 5 | 2 5 4 Average Carried 3 | . 3 3 Final Capacity 8 | 5 5 8 Final Carried 5 | 2 5 1 Class Distribution -------------------- 47% | Scavenger-Mutant 37% | Mutant 15% | Scavenger-Sprinter Dominant Class ---------------- Scavenger-Mutant | -10/Materials Scavenger-Sprinter | -9/Materials Resources | -11 -10 -9 ----------- Run | Yrd Mat Mat Matter Collected 412 | 250 143 19 Remotely . | . . . Salvage Created 285 | 35 177 73 Parts 32 | 2 26 4 Haulers Intercepted . | . . . Recyclers Shooed . | . . . Parts Field Recycled . | . . . Retrieved Matter . | . . . Parts Self-Destructed . | . . . Prevented . | . . . Kills | -11 -10 -9 ------- Run | Yrd Mat Mat Combat Hostiles Destroyed 13 | 1 9 3 Guns 11 | 1 9 1 AOE 2 | . . 2 Classes Destroyed 5 | 1 3 1 Worker 1 | . 1 . Watcher 1 | . 1 . Swarmer 9 | . 9 . Grunt 3 | 1 . 2 Sentry 1 | . . 1 Best Kill Streak 7 | 1 7 2 Combat Bots Only 6 | 1 6 2 Max Kills in Single Turn 2 | 1 2 1 Gunslinging . | . . . Exploded 1 | . . 1 Melee . | . . . Uniques/NPCs Destroyed . | . . . Combat | -11 -10 -9 -------- Run | Yrd Mat Mat Hostile Shots Fired 180 | 5 71 104 Missed 44 | 3 13 28 Damage Taken 1450 | 22 465 963 Core 480 | . 75 405 Absorbed by Shields . | . . . Redirected to Shielding 26 | . 7 19 Core Remaining (%) 85 | 100 70 . Volleys Fired 47 | 3 28 16 Largest 2 | 2 2 2 Hottest 90 | 90 90 40 Shots Fired 80 | 6 55 19 Gun 74 | 6 55 13 Cannon . | . . . Launcher 6 | . . 6 Special . | . . . Kinetic 46 | . 33 13 Thermal 17 | 3 14 . Explosive 6 | . . 6 Electromagnetic 11 | 3 8 . Robot Hit Streak 9 | 4 9 5 Robot Miss Streak 5 | 1 5 1 Penetration Max . | . . . Secondary Targets . | . . . Shots Hit Robots 44 | 4 27 13 Core Hits 28 | 2 14 12 Critical Kills . | . . . Critical Parts Destroyed 1 | . 1 . Critical Strikes 1 | . 1 . Destroy 1 | . 1 . Melee Attacks . | . . . Impact . | . . . Slashing . | . . . Piercing . | . . . Sneak Attacks . | . . . Combat Hostiles . | . . . Follow-up Attacks . | . . . Damage Inflicted 710 | 54 294 362 Guns 434 | 54 294 86 Cannons . | . . . Explosions 265 | . . 265 Melee . | . . . Ramming 11 | . . 11 Kinetic 258 | . 172 86 Thermal 113 | 26 87 . Explosive 265 | . . 265 Electromagnetic 63 | 28 35 . Impact . | . . . Slashing . | . . . Piercing . | . . . Highest Corruption 4 | . . 4 Average Corruption 4 | . . 4 Corruption Purged . | . . . Corruption Blocked . | . . . Effects 1 | . . 1 Parts Rejected 1 | . . 1 Overload Shots . | . . . Overflow Damage . | . . . Projectiles . | . . . Explosions . | . . . Melee . | . . . Knockbacks . | . . . Impact . | . . . Kinetic . | . . . Secondary . | . . . Self-Inflicted Damage 23 | . . 23 Shots 1 | . . 1 Rammed 7 | . . 7 Targets Rammed 8 | 1 . 7 Kicked 1 | 1 . . Crushed . | . . . Highest Temperature 264 | 84 264 31 Average Temperature 98 | 47 119 13 Received Heat Transfer 426 | 12 . 414 Siege Activations . | . . . Robots Corrupted . | . . . Combat Hostiles . | . . . Parts Fried . | . . . Impact Corruptions . | . . . Robots Melted . | . . . Combat Hostiles . | . . . Parts Melted . | . . . Heat Transferred 333 | 74 259 . Parts Sabotaged . | . . . Parts Stolen . | . . . Parts Stripped . | . . . Power Chain Reactions . | . . . Alert | -11 -10 -9 ------- Run | Yrd Mat Mat Peak Influence 323 | 20 287 323 Initial 120 | . 13 120 Average 158 | 2 165 234 Maximum Alert Level 1 | . 1 1 Low Security (%) 57 | 100 59 30 Level 1 42 | . 40 69 Level 2 . | . . . Level 3 . | . . . Level 4 . | . . . Level 5 . | . . . High Security . | . . . Max Security . | . . . Squads Dispatched 1 | . 1 . Investigation 1 | . 1 . Extermination . | . . . Reinforcement . | . . . Assault . | . . . Garrison . | . . . Intercept . | . . . Searches Triggered . | . . . Construction Impeded . | . . . Haulers Reinforced . | . . . Active Scanning Responses . | . . . Cargo Convoy Interrupts . | . . . Stealth | -11 -10 -9 --------- Run | Yrd Mat Mat Distress Signals 2 | . 2 . Communications Jammed . | . . . Distress Signals . | . . . Times Spotted 27 | 1 14 12 Peak Tracking Total 8 | 1 5 8 Tactical Retreats 2 | . 1 1 Traps | -11 -10 -9 ------- Run | Yrd Mat Mat Traps Triggered 3 | . 3 . Indirectly . | . . . Trap Hack Attempts . | . . . Triggered . | . . . Disarmed . | . . . Reprogrammed . | . . . Reused . | . . . Traps Extracted . | . . . Installed . | . . . Triggered . | . . . Machines | -11 -10 -9 ---------- Run | Yrd Mat Mat Machines Disabled . | . . . Max in Single Turn . | . . . Machines Repaired . | . . . Machines Dismantled . | . . . Machines Sabotaged . | . . . Overloaded Fab Kills . | . . . Hacking | -11 -10 -9 --------- Run | Yrd Mat Mat Machines Accessed 3 | . 2 1 Terminals 3 | . 2 1 Fabricators . | . . . Repair Stations . | . . . Recycling Units . | . . . Scanalyzers . | . . . Garrison Access . | . . . Total Hacks 21 | . 14 7 Successful 11 | . 7 4 Failed 10 | . 7 3 Catastrophic 1 | . . 1 Database Lockouts . | . . . Manual 2 | . 2 . Terminals 21 | . 14 7 Fabricators . | . . . Repair Stations . | . . . Recycling Units . | . . . Scanalyzers . | . . . Garrison Access . | . . . Terminal Hacks 11 | . 7 4 Record 4 | . 4 . Prototype ID Bank 1 | . . 1 Emergency Access Points 1 | . 1 . Terminal Index 1 | . 1 . Alert Level 2 | . 1 1 Dispatch Records 1 | . . 1 Reinforcement Status 1 | . . 1 Fabricator Hacks . | . . . Repair Station Hacks . | . . . Recycling Unit Hacks . | . . . Scanalyzer . | . . . Garrison Access Hacks . | . . . Unauthorized Hacks . | . . . Terminals . | . . . Fabricators . | . . . Repair Stations . | . . . Recycling Units . | . . . Scanalyzers . | . . . Garrison Access . | . . . Data Cores Recovered . | . . . Used . | . . . Hacking Detections 3 | . 2 1 Full Trace Events 1 | . 1 . Feedback Events . | . . . Feedback Blocked . | . . . Robot Schematics Acquired . | . . . Robots Built . | . . . Authchips . | . . . Time . | . . . Total Robot Build Rating . | . . . Part Schematics Acquired . | . . . Parts Built . | . . . Authchips . | . . . Time . | . . . Total Part Build Rating . | . . . Parts Repaired . | . . . Time . | . . . Parts Recycled . | . . . Recycled Matter . | . . . Retrieved Matter . | . . . Retrieved Components . | . . . Parts Scanalyzed . | . . . Part Schematics Acquired . | . . . Parts Damaged . | . . . Bothacking | -11 -10 -9 ------------ Run | Yrd Mat Mat Used RIF Installer . | . . . Robots Hacked . | . . . Non-combat . | . . . Combat . | . . . Robot Hacks Applied . | . . . Relay Couplers Released . | . . . Fabnet Peak Effective % . | . . . Robots Rewired . | . . . Allies Hacked . | . . . Hacks Repelled . | . . . Allies | -11 -10 -9 -------- Run | Yrd Mat Mat Total Allies . | . . . Largest Group . | . . . Highest-Rated Group . | . . . Highest-Rated Ally . | . . . Total Orders . | . . . Ally Attacks . | . . . Total Damage . | . . . Kills . | . . . Allies Corrupted . | . . . Allies Melted . | . . . Intel | -11 -10 -9 ------- Run | Yrd Mat Mat Robot Analysis Total . | . . . Derelict Logs Recovered . | . . . Drone Launches . | . . . Drone Recoveries . | . . . Exploration | -11 -10 -9 ------------- Run | Yrd Mat Mat Turns Passed 495 | 91 242 162 Spaces Moved 578 | 69 290 219 Core 41 | 15 1 25 Treads . | . . . Legs 79 | 54 25 . Wheels . | . . . Hover 1 | . 1 . Flight 457 | . 263 194 Fastest Speed 31 | 50 37 31 Average Speed 53 | 104 45 49 Slowest Speed 200 | 120 120 200 Overloaded Moves . | . . . Propulsion Burnouts . | . . . Robots Hopped 2 | . 2 . Cave-ins Triggered . | . . . Exploration Rate (%) 26 | 6 50 23 Regions Visited 2 Branch Regions . Pre-discovered Areas . | . . . Known Exits Taken . | . . . Unknown Exits Taken 2 | 1 1 . Scrap Searched . | . . . Spaces Dug . | . . . Terrain Destroyed 55 | . . 55 Melee . | . . . Projectile . | . . . AOE 55 | . . 55 Terrain Rammed . | . . . Walls Destroyed . | . . . Machines Disabled . | . . . Actions | -11 -10 -9 --------- Run | Yrd Mat Mat Total 678 | 79 347 252 Wait 1 | . 1 . Move 572 | 68 285 219 Hop 2 | . 2 . Pick Up 9 | 2 6 1 Fast Attach 21 | 5 14 2 Attach 6 | . 1 5 Detach 3 | . 3 . Swap 3 | . 1 2 Drop 6 | . 6 . Fire 47 | 3 28 16 Melee . | . . . Ram 7 | . . 7 Kick 1 | 1 . . Crush . | . . . Escape Stasis . | . . . Rewire . | . . . Trap . | . . . Miscellaneous . | . . . Route ------- -11/Scrapyard -10/Materials (discovered 3 exits: *Mat x2 / [*Min]) -9/Materials History --------- Turn | Location | Event 2 | -11/Scrapyard | Met Revision 17 65 | -11/Scrapyard | Discovered new exit (range 8) 92 | -11/Scrapyard | Entered Materials 174 | -10/Materials | Discovered new exit (range 12) 271 | -10/Materials | Discovered new exit (range 15) 304 | -10/Materials | Discovered new exit (range 13) 334 | -10/Materials | Entered another Materials area 334 | -9/Materials | Evolved 2 slots: Propulsion x2 459 | -9/Materials | Lost 6 parts (1p4n1w) 475 | -9/Materials | Core integrity fell below 50% 490 | -9/Materials | Core integrity fell below 20% 496 | -9/Materials | Destroyed by G-34 Mercenary with Small Laser Last Messages --------------- Flight Unit destroyed. The unstable cave ceiling collapses. K-01 Serf collects debris. U-05 Engineer builds a Wall. Slammed into U-05 Engineer. K-01 Serf collects debris. Slammed into U-05 Engineer. K-01 Serf collects debris. Acquired VTOL Module. VTOL Module destroyed. G-34 Mercenary destroyed. Lgt. Assault Rifle destroyed. Critical hit (Burn: +37). Med. Matter Pod destroyed. Lgt. Assault Rifle destroyed. Slammed into B-36 Bruiser. Core Shielding destroyed. System corrupted by crushing effect (+4). Acquired Shotgun. System corrupted: Shotgun rejected. Map ----- +----------------------------------------------------+ | ?????????????????????????????????????????????????? | | ?????????????????????????????????????????????????? | | ?????????????????????????????????????????????????? | | ######???????????????????????????????????????????? | | #???????????????????????????????????????????? | | #???????????????????????????????????????????? | | #???????????????????????????????????????????? | | #???????????????????????????????????????????? | | ######???????????????????????????????????????????? | | #?????????????????????????????????????????????? | | #??########???????????????????????????????????? | | #??# #???????????????????????????????????? | | #??# #???????????????????????????????????? | | ## #??# !!#???????????????????????????????????? | | # #### #???????????????????????????????????? | | + + #???????????????????????????????????? | | # # #???????????????????????????????????? | | # #####+##???????????????????????????????????? | | # #????????????????????????????????????? | | # #????????????????????????????????????? | | ## #??????????###???????????????????????? | | + #??????##### ####????????????????????? | | # ######## #??????# #????????????????????? | | #+######## ######## #????????????????????? | | # # + ||[ #????????????????????? | | # """ # # !%g|@ #????????????????????? | | #// """ # # Y|[ #????????????????????? | | ##// """ # # ""g b #????????????????????? | | ?#/ / + "T #????????????????????? | | ?# # # "" g #????????????????????? | | ?#[ "Y" ## ### # #????????????????????? | | ?# """ # # # ####+#########+##?????????????? | | ?# # # # ?????????????? | | ?###+#### !#=# ?????????????? | | ???# #??# = ?????????????? | | ???# #?### %!# ##+## ########?????????????????? | | ???# #?# # # ## #????????????????????????? | | ???# #?## # ## #????????????????????????? | | ???# #??# ## #????????????????????????? | | ???# #??# # # # ## #????????????????????????? | | ???# #??### ## # ????????????????????????? | | ???# #????# ## # #???????????????????????? | | #### #????# ## # #???????????????????????? | | # #????# ###### #???????????????????????? | | # ###??## ##????? #???????????????????????? | | # #####+##?????# ##???????????????????????? | | "" + # #?????? #????????????????????????? | | "" # # #?????? #????????????????????????? | | "" # + """ #?????? #????????????????????????? | | # # """ #?????? #????????????????????????? | +----------------------------------------------------+ Best States ------------- Heat Dissipation 28 Energy Generation 10 Energy Capacity 125 Matter Stores 369 Matter Capacity 400 Sight Range 16 Terrain Scan Density 10 Core Shielding 20 Evasion (%) 63 Item Schematics ----------------- None Robot Schematics ------------------ None Fabricated ------------ Nothing Alien Tech Used ----------------- None Achievements -------------- Storm Trooper Challenges ------------ None Game ------ Seed HypervelocityResetPick Manual? 0 Play Time 00:29:06 Cumulative 1.8 hours Start 2024.04.06 @ 15:04:47 End 2024.04.06 @ 15:39:55 Sessions 1 Manual Loads 0 Difficulty Rogue Special Mode None Game No. 2 Rogue 2 Adventurer 0 Explorer 0 Win Type - Total 0 Types 0/0/0/0/0/0/0/0/0 Lore% 1 Gallery% 2 Achievement% 4 Wizard Run 0 Options --------- Layout 1 ASCII 0 Keyboard 1 Movement Numpad Keybinds 0 Fullscreen 1 Font 24/Smallcaps Map View 50x35 Zoom Use 0% Tactical HUD 0 Map Filters NONE Filters NONE Steam 1 RUN: ed7cc61c-0cec-4e8b-b111-0412a4010b89